bitfinex-derivatives/quotes_SOLF0:USTF0_20240924
["timestamp","ask_amount","ask_price","bid_price","bid_amount"]
[1727136371755,3.49633927,144.84,144.75,4.2689]
[1727136371957,4.1028,144.91,144.75,4.2689]
[1727136372554,3.4532,144.8,144.75,4.2689]
[1727136372854,4.1028,144.91,144.75,4.2689]
[1727136372855,3.453,144.81,144.77,3.4539]
[1727136373650,3.453,144.81,144.75,4.2689]
[1727136373651,101.53526092,144.9,144.75,4.2689]
[1727136374249,3.4526,144.83,144.79,3.4533]
[1727136374543,101.53526092,144.9,144.79,3.4533]
[1727136374749,101.53526092,144.9,144.75,4.2689]
[1727136376059,3.4514,144.88,144.75,4.2689]
[1727136376961,3.4514,144.88,144.84,3.4521]
[1727136377159,101.53526092,144.9,144.75,4.2689]
[1727136379056,3.4525,144.83,144.75,4.2689]
[1727136379247,101.53526092,144.9,144.75,4.2689]
[1727136380059,101.53526092,144.9,144.79,3.4532]
[1727136380060,3.4525,144.83,144.79,3.4532]
[1727136380262,101.53526092,144.9,144.75,4.2689]
[1727136380461,3.4531,144.81,144.77,3.4538]
[1727136381057,3.4534,144.79,144.75,3.4543]
[1727136381562,3.4532,144.8,144.76,3.4541]
[1727136382060,7.57076554,144.83,144.72,60.14116084]
[1727136382861,3.453,144.81,144.72,60.14116084]
[1727136383668,7.57076554,144.83,144.72,60.14116084]
[1727136384157,3.4532,144.8,144.75,3.4543]
[1727136384352,7.57076554,144.83,144.75,3.4543]
[1727136384757,3.4533,144.8,144.75,3.4543]
[1727136384965,3.4533,144.8,144.76,3.454]
[1727136386054,4.1664,144.83,144.72,60.14116084]
[1727136386763,101.53526092,144.9,144.72,60.14116084]
[1727136386965,4.2917,144.89,144.72,60.14116084]
[1727136387168,4.2917,144.89,144.81,3.4529]
[1727136387560,4.2917,144.89,144.72,60.14116084]
[1727136387861,4.2917,144.89,144.8,3.4531]
[1727136387862,3.4522,144.84,144.8,3.4531]
[1727136388062,4.2917,144.89,144.72,60.14116084]
[1727136388569,3.4527,144.82,144.72,60.14116084]
[1727136389071,3.4527,144.82,144.78,3.4536]
[1727136390467,3.4527,144.82,144.79,3.4534]
[1727136391271,4.2917,144.89,144.8,3.4531]
[1727136391970,3.4524,144.84,144.81,3.4529]
[1727136395273,4.2917,144.89,144.72,60.14116084]
[1727136395775,3.4515,144.87,144.84,3.452]
[1727136396577,3.4514,144.88,144.85,3.452]
[1727136397578,4.2917,144.89,144.85,3.4518]
[1727136397579,7.7429,144.89,144.85,3.4518]
[1727136397874,7.7429,144.89,144.75,4.2062]
[1727136398076,2.8577,144.89,144.75,4.2062]
[1727136398473,6.3087,144.89,144.86,3.4516]
[1727136400280,6.3087,144.89,144.85,3.4519]
[1727136401266,2.8577,144.89,144.79,3.51188009]
[1727136401472,2.8577,144.89,144.75,4.2062]
[1727136401973,3.4514,144.88,144.75,4.2062]
[1727136403169,2.8577,144.89,144.75,15.34051676]
[1727136403366,2.8577,144.89,144.75,4.2062]
[1727136403774,3.4516,144.87,144.83,3.4524]
[1727136403973,2.8577,144.89,144.75,4.2062]
[1727136404176,4.2637,144.89,144.75,4.2062]
[1727136404570,4.2637,144.89,144.81,3.4527]
[1727136404571,3.452,144.85,144.81,3.4527]
[1727136406467,3.4522,144.84,144.81,3.4527]
[1727136407581,3.4521,144.85,144.81,3.4527]
[1727136409584,4.2637,144.89,144.75,10.66132615]
[1727136409880,4.2637,144.89,144.75,4.2062]
[1727136410086,17.85614801,144.89,144.75,4.2062]
[1727136410274,3.4528,144.82,144.78,3.4535]
[1727136410677,3.4528,144.82,144.75,4.2062]
[1727136411285,17.85614801,144.89,144.75,4.2062]
[1727136411685,4.2637,144.89,144.75,4.2062]
[1727136412686,17.85921287,144.89,144.75,4.2062]
[1727136412989,17.85921287,144.89,144.79,3.4532]
[1727136413376,17.85921287,144.89,144.75,4.2062]
[1727136413983,3.4525,144.83,144.79,3.4534]
[1727136414986,3.4525,144.83,144.8,3.4531]
[1727136419782,3.4525,144.83,144.79,3.4533]
[1727136421186,3.51823708,144.84,144.77,3.4538]
[1727136421493,2.8501,144.83,144.74,4.70326769]
[1727136421888,3.4536,144.79,144.75,3.4541]
[1727136422393,3.4536,144.79,144.74,4.70326769]
[1727136423992,3.4536,144.79,144.76,3.4541]
[1727136424190,3.4537,144.78,144.74,4.70326769]
[1727136424398,3.4537,144.78,144.74,8.15766769]
[1727136425997,3.4533,144.8,144.76,3.4541]
[1727136426293,1.4445,144.82,144.76,3.4541]
[1727136426688,1.4445,144.82,144.74,4.70326769]
[1727136426888,2.8501,144.83,144.74,4.70326769]
[1727136427293,1.4191,144.83,144.74,4.70326769]
[1727136427596,4.8716,144.83,144.79,3.4532]
[1727136429794,3.4525,144.83,144.79,3.4532]
[1727136430994,3.4525,144.83,144.8,3.4531]
[1727136431297,1.4539,144.87,144.73,11.1446236]
[1727136431504,1.4539,144.87,144.74,6.44865008]
[1727136431701,1.4539,144.87,144.73,6.44865008]
[1727136431912,1.4539,144.87,144.64,10.3708]
[1727136431913,6.9035,144.86,144.6,9.57294157]
[1727136432201,82.9,144.85,144.63,2.8124]
[1727136432404,25.53444496,144.84,144.63,2.8124]
[1727136432610,3.4545,144.75,144.63,6.30625494]
[1727136432910,13.59543807,144.85,144.63,6.30625494]
[1727136433405,25.53444496,144.86,144.63,6.30625494]
[1727136433606,25.53444496,144.86,144.65,3.4567]
[1727136433902,25.53444496,144.86,144.63,2.8124]
[1727136434106,25.53444496,144.86,144.63,1.4078]
[1727136434497,25.53444496,144.86,144.6,1.4181]
[1727136434702,3.4569,144.65,144.58,1.4046]
[1727136435413,3.42749464,144.67,144.56,82.92]
[1727136435711,1.4392,144.66,144.56,82.92]
[1727136435926,3.457,144.65,144.56,82.92]
[1727136436106,3.457,144.65,144.57,3.4586]
[1727136436413,4.8957,144.66,144.56,82.92]
[1727136436809,4.8957,144.66,144.58,3.4583]
[1727136437018,4.8957,144.66,144.57,1.3121]
[1727136437809,3.4568,144.65,144.57,1.3121]
[1727136438210,1.4392,144.66,144.57,1.3121]
[1727136439311,3.4572,144.63,144.57,1.3121]
[1727136440314,1.4392,144.66,144.57,4.7707]
[1727136441506,3.4572,144.64,144.57,4.7707]
[1727136441713,1.4392,144.66,144.58,3.4584]
[1727136441920,1.4392,144.66,144.57,1.3121]
[1727136442419,1.4392,144.66,144.59,3.4582]
[1727136443116,3.457,144.64,144.59,3.4582]
[1727136443308,1.4392,144.66,144.6,3.4579]
[1727136444022,3.4568,144.65,144.6,3.4579]
[1727136446511,3.457,144.64,144.6,3.4579]
[1727136448124,1.4392,144.66,144.59,3.458]
[1727136448820,3.4571,144.64,144.59,3.458]
[1727136449027,1.4392,144.66,144.57,1.3121]
[1727136449419,3.4575,144.62,144.57,1.3121]
[1727136450829,3.4575,144.62,144.58,3.4583]
[1727136452222,1.4392,144.66,144.57,1.3121]
[1727136452919,3.4575,144.62,144.58,3.4583]
[1727136453229,1.4392,144.66,144.52,81.30351517]
[1727136453525,1.4392,144.66,144.57,3.4585]
[1727136453729,1.4392,144.66,144.53,1.4329]
[1727136453917,3.458,144.6,144.56,3.4587]
[1727136454319,1.4392,144.66,144.53,1.4329]
[1727136454823,3.4577,144.61,144.57,3.4585]
[1727136455125,1.4392,144.66,144.53,1.4329]
[1727136455922,1.4392,144.66,144.56,3.4587]
[1727136456528,3.4578,144.61,144.56,18.4087]
[1727136456724,14.95,144.65,144.56,14.95]
[1727136457430,3.4577,144.62,144.58,3.4583]
[1727136458429,3.4577,144.61,144.58,3.4583]
[1727136461534,3.4577,144.61,144.57,3.4586]
[1727136461927,3.458,144.6,144.57,3.4586]
[1727136462324,14.95,144.65,144.57,3.4586]
[1727136462632,3.4578,144.61,144.57,3.4586]
[1727136464725,3.4575,144.62,144.56,14.95]
[1727136465028,1.4392,144.66,144.58,14.95]
[1727136465227,3.4574,144.63,144.59,3.458]
[1727136465631,1.4392,144.66,144.59,3.458]
[1727136466231,1.4392,144.66,144.58,14.95]
[1727136466830,3.4572,144.64,144.6,3.4578]
[1727136467135,3.4572,144.64,144.58,14.95]
[1727136467336,3.4561,144.68,144.62,14.95]
[1727136467532,1.413,144.71,144.64,14.95]
[1727136467738,3.52798726,144.72,144.66,14.95]
[1727136467933,3.4552,144.72,144.68,3.4559]
[1727136468135,3.43250536,144.72,144.68,3.4559]
[1727136468339,2.8439,144.74,144.68,3.4559]
[1727136468534,3.4555,144.71,144.67,3.4562]
[1727136468727,2.8439,144.74,144.66,14.95]
[1727136469241,17.7939,144.74,144.67,3.4562]
[1727136469432,3.44253788,144.73,144.66,14.95]
[1727136469840,3.4556,144.7,144.66,18.4064]
[1727136470536,3.4556,144.7,144.66,3.4564]
[1727136471837,3.4556,144.7,144.64,14.95]
[1727136472238,3.4554,144.71,144.64,14.95]
[1727136472945,3.4554,144.71,144.66,3.4563]
[1727136473140,18.32378976,144.72,144.64,14.95]
[1727136473437,14.95,144.72,144.64,14.95]
[1727136473641,3.456,144.69,144.64,18.4068]
[1727136473842,3.456,144.69,144.64,14.95]
[1727136474339,3.456,144.69,144.65,3.4566]
[1727136477334,3.456,144.69,144.61,1.3318]
[1727136477335,14.95,144.7,144.61,16.2818]
[1727136477544,2.8439,144.74,144.61,16.2818]
[1727136477545,14.95,144.68,144.61,1.3318]
[1727136477942,3.4571,144.64,144.61,1.3318]
[1727136479948,3.4571,144.64,144.61,4.7895]
[1727136481140,3.4568,144.65,144.62,3.4574]
[1727136481936,3.4571,144.64,144.61,4.7894]
[1727136482648,1.3968,144.68,144.62,14.95]
[1727136482945,3.4559,144.69,144.66,3.4565]
[1727136483142,3.42290931,144.72,144.66,14.95]
[1727136483342,17.784,144.74,144.66,14.95]
[1727136483539,2.834,144.74,144.66,14.95]
[1727136483748,2.834,144.74,144.61,1.3318]
[1727136483749,1.3899,144.79,144.7,14.95]
[1727136483942,1.3634,144.78,144.7,14.95]
[1727136484143,3.4543,144.76,144.72,3.4549]
[1727136484343,1.3634,144.78,144.72,3.4549]
[1727136484558,1.3634,144.78,144.7,14.95]
[1727136485154,1.3899,144.79,144.71,14.95]
[1727136485352,1.4457,144.8,144.71,14.95]
[1727136485353,14.95,144.81,144.71,96.18120735]
[1727136486850,3.4537,144.78,144.74,3.4546]
[1727136487646,3.4535,144.79,144.75,3.4543]
[1727136488649,3.4536,144.78,144.74,3.4545]
[1727136488960,14.95,144.81,144.71,96.18120735]
[1727136489348,3.4544,144.75,144.72,3.455]
[1727136489854,14.95,144.8,144.72,3.455]
[1727136490053,3.454,144.77,144.72,3.455]
[1727136490249,14.95,144.81,144.73,14.95]
[1727136490759,3.4538,144.78,144.74,3.4544]
[1727136492563,14.95,144.8,144.71,14.95]
[1727136493062,3.4543,144.76,144.72,3.4549]
[1727136493763,3.4543,144.76,144.71,96.18120735]
[1727136493764,3.454,144.77,144.73,3.4548]
[1727136494762,3.4541,144.76,144.72,3.455]
[1727136495155,14.95,144.78,144.71,81.23120735]
[1727136495357,14.95,144.76,144.71,81.23120735]
[1727136495564,14.95,144.76,144.68,4.2114]
[1727136495858,3.455,144.73,144.69,3.4558]
[1727136496456,3.4552,144.72,144.68,7.6673]
[1727136496855,3.4552,144.72,144.68,4.2114]
[1727136497765,3.4552,144.72,144.68,7.6673]
[1727136498061,3.4553,144.71,144.68,7.6673]
[1727136498373,18.34163498,144.76,144.68,7.6673]
[1727136498964,18.34163498,144.76,144.68,2.7941]
[1727136499352,3.4555,144.71,144.68,1.4095]
[1727136499561,18.34163498,144.76,144.68,1.4095]
[1727136499756,2.8244,144.75,144.68,1.4095]
[1727136500667,2.8244,144.75,144.67,3.4562]
[1727136501865,3.4556,144.7,144.67,3.4562]
[1727136503663,3.4554,144.71,144.67,3.4562]
[1727136508868,2.8244,144.75,144.69,14.95]
[1727136509070,1.4457,144.85,144.72,14.95]
[1727136509280,1.4457,144.85,144.75,3.4542]
[1727136509281,1.3918,144.82,144.75,3.4542]
[1727136509577,1.3918,144.82,144.74,14.95]
[1727136509578,3.4534,144.8,144.74,14.95]
[1727136510371,3.4534,144.8,144.76,3.4541]
[1727136510572,3.4534,144.79,144.76,3.4541]
[1727136510774,4.9239239,144.82,144.75,3.4543]
[1727136511073,3.4535,144.79,144.74,14.95]
[1727136511665,3.4537,144.78,144.74,14.95]
[1727136512071,14.95,144.81,144.72,14.95]
[1727136512278,14.95,144.81,144.7,14.95]
[1727136512474,3.454,144.77,144.73,3.4548]
[1727136512970,14.95,144.81,144.7,14.95]
[1727136513278,14.95,144.79,144.7,14.95]
[1727136514079,3.4542,144.76,144.72,3.4549]
[1727136514274,14.95,144.79,144.7,14.95]
[1727136514471,14.95,144.81,144.7,14.95]
[1727136514680,14.95,144.81,144.73,14.95]
[1727136514980,3.454,144.77,144.73,18.4047]
[1727136515187,14.95,144.81,144.73,14.95]
[1727136515573,3.4538,144.78,144.74,3.4544]
[1727136517475,3.4539,144.77,144.74,3.4544]
[1727136517675,3.4539,144.77,144.73,18.4047]
[1727136523782,3.4539,144.77,144.74,3.4546]
[1727136524977,3.4539,144.77,144.73,18.4047]
[1727136530297,3.4539,144.77,144.75,9.56]
[1727136531597,4.9239239,144.82,144.76,9.56]
[1727136531794,4.9239239,144.82,144.8,9.56]
[1727136532688,3.4531,144.81,144.8,9.56]
[1727136532888,10.9518,144.82,144.69,8.67445812]
[1727136533187,9.56,144.79,144.74,9.56]
[1727136533691,3.454,144.77,144.74,13.0146]
[1727136533887,9.56,144.79,144.74,13.0146]
[1727136534296,3.4537,144.78,144.75,3.4543]
[1727136534790,16.3218,144.82,144.72,14.93]
[1727136535098,16.3218,144.82,144.71,14.93]
[1727136535293,3.4543,144.76,144.72,3.455]
[1727136535792,14.93,144.8,144.71,3.4551]
[1727136535995,14.93,144.78,144.71,3.4551]
[1727136536294,14.93,144.78,144.7,3.4555]
[1727136536295,3.4547,144.74,144.7,3.4555]
[1727136537998,3.46337325,144.75,144.67,14.93]
[1727136538190,14.93,144.76,144.67,14.93]
[1727136539098,1.4218,144.75,144.67,14.93]
[1727136539299,3.4553,144.71,144.67,14.93]
[1727136539494,1.4218,144.75,144.67,14.93]
[1727136539695,4.88474822,144.75,144.67,14.93]
[1727136539889,1.4218,144.75,144.67,14.93]
[1727136540093,1.4218,144.75,144.65,96.17572454]
[1727136540294,4.95008034,144.75,144.65,96.17572454]
[1727136540497,3.4557,144.7,144.66,3.4563]
[1727136540891,3.4563,144.67,144.65,81.24572454]
[1727136541313,1.4478,144.71,144.61,14.93]
[1727136541488,3.4565,144.66,144.62,3.4572]
[1727136541894,1.3358,144.69,144.62,3.4572]
[1727136543197,1.3358,144.69,144.59,4.0169]
[1727136543503,14.93,144.68,144.59,18.9469]
[1727136543894,3.4572,144.64,144.6,3.4578]
[1727136544188,3.4572,144.64,144.59,18.9469]
[1727136544598,3.4572,144.64,144.6,3.4579]
[1727136546906,3.4573,144.63,144.59,21.0849]
[1727136547204,3.50643973,144.62,144.57,81.29195131]
[1727136547395,14.93,144.64,144.57,81.29195131]
[1727136547895,18.37312036,144.64,144.57,81.29195131]
[1727136548092,3.4582,144.6,144.57,81.29195131]
[1727136548604,18.37312036,144.64,144.57,81.29195131]
[1727136548812,14.93,144.62,144.54,1.3396]
[1727136549109,14.93,144.62,144.52,14.93]
[1727136549398,3.4587,144.57,144.53,3.4595]
[1727136549805,3.4587,144.57,144.52,14.93]
[1727136550010,3.4584,144.58,144.54,3.4594]
[1727136550196,3.4584,144.58,144.52,14.93]
[1727136551208,3.4584,144.58,144.54,3.4592]
[1727136554304,3.4583,144.59,144.55,3.4591]
[1727136556319,3.458,144.6,144.56,3.4589]
[1727136556510,1.3728,144.63,144.58,14.93]
[1727136556816,14.93,144.68,144.58,14.93]
[1727136557005,3.4572,144.64,144.6,3.4578]
[1727136557204,3.42962911,144.64,144.6,3.4578]
[1727136557401,14.93,144.68,144.6,3.4578]
[1727136558114,14.93,144.68,144.61,3.4577]
[1727136558909,3.4569,144.65,144.61,3.4577]
[1727136559315,3.4569,144.65,144.62,3.4574]
[1727136559515,19.157,144.7,144.56,2.7923]
[1727136559712,2.817,144.7,144.62,14.93]
[1727136560016,3.4564,144.67,144.64,3.4569]
[1727136560220,2.817,144.7,144.62,14.93]
[1727136560420,1.4149,144.7,144.62,14.93]
[1727136560713,3.37169065,144.72,144.66,3.4564]
[1727136560902,16.351,144.74,144.66,3.4564]
[1727136561109,3.4558,144.69,144.66,3.4564]
[1727136561507,3.42763935,144.71,144.65,3.4567]
[1727136561817,3.456,144.68,144.63,1.3883]
[1727136562418,3.46084688,144.71,144.63,1.3883]
[1727136562719,14.93,144.72,144.63,1.3883]
[1727136562917,3.46996747,144.83,144.68,14.93]
[1727136563105,17.8356,144.77,144.66,14.93]
[1727136563310,14.93,144.75,144.67,3.4562]
[1727136564218,3.4552,144.72,144.67,3.4562]
[1727136565617,1.4161,144.76,144.62,1.3231]
[1727136565618,14.93,144.7,144.62,1.3231]
[1727136566023,3.4564,144.67,144.63,3.4572]
[1727136569617,3.4565,144.66,144.63,3.4572]
[1727136572630,3.4563,144.67,144.63,3.4572]
[1727136573537,14.93,144.7,144.62,1.3231]
[1727136574838,3.4559,144.69,144.65,3.4567]
[1727136577638,3.4563,144.67,144.64,3.4569]
[1727136577849,14.93,144.7,144.62,1.3231]
[1727136578944,3.4565,144.66,144.63,3.4572]
[1727136579334,3.4568,144.65,144.62,3.4574]
[1727136580240,18.31071522,144.66,144.58,17.5855]
[1727136580435,14.93,144.66,144.58,17.5855]
[1727136580641,3.45299854,144.65,144.58,17.5855]
[1727136581040,3.4571,144.64,144.6,3.4578]
[1727136581432,3.4571,144.64,144.58,17.5855]
[1727136582744,3.4571,144.64,144.6,3.4578]
[1727136583348,3.4571,144.64,144.58,17.5855]
[1727136583349,3.4568,144.65,144.61,3.4576]
[1727136584148,3.4571,144.64,144.61,3.4576]
[1727136584345,3.4571,144.64,144.58,17.5855]
[1727136584346,3.4571,144.64,144.6,3.4579]
[1727136584849,3.4572,144.63,144.6,3.4579]
[1727136585650,3.4849533,144.65,144.58,17.5855]
[1727136585651,3.4575,144.62,144.59,3.458]
[1727136585948,3.4849533,144.65,144.58,1.3236]
[1727136586249,1.3482,144.65,144.56,14.93]
[1727136586945,4.89358536,144.65,144.56,14.93]
[1727136587146,3.4573,144.63,144.59,3.458]
[1727136587642,3.4573,144.63,144.6,3.4579]
[1727136587839,3.4573,144.63,144.56,14.93]
[1727136588044,3.4573,144.63,144.59,3.4581]
[1727136588351,3.4575,144.62,144.59,3.4581]
[1727136588953,4.89358536,144.65,144.56,14.93]
[1727136589155,14.93,144.64,144.56,14.93]
[1727136590052,14.93,144.64,144.57,84.74249807]
[1727136590553,14.93,144.64,144.57,81.28399807]
[1727136591142,14.93,144.64,144.57,84.74249807]
[1727136592656,3.458,144.6,144.57,84.74249807]
[1727136594357,3.458,144.6,144.58,9.57]
[1727136597264,3.458,144.6,144.57,94.31249807]
[1727136600357,3.4584,144.58,144.57,81.28399807]
[1727136600557,6.33098536,144.65,144.57,90.85399807]
[1727136600760,9.57,144.63,144.58,9.57]
[1727136600959,3.4579,144.61,144.58,13.0284]
[1727136601765,3.458,144.6,144.58,9.57]
[1727136602657,6.33098536,144.65,144.59,9.57]
[1727136602962,3.54538536,144.65,144.63,9.57]
[1727136603159,9.57,144.68,144.63,9.57]
[1727136603564,3.4571,144.64,144.62,9.57]
[1727136605369,3.4569,144.65,144.62,13.0274]
[1727136605565,3.4569,144.65,144.63,9.57]
[1727136607765,9.57,144.66,144.58,4.2011]
[1727136607967,9.57,144.66,144.6,9.57]
[1727136608369,9.57,144.66,144.6,13.0278]
[1727136608569,3.52625752,144.65,144.6,13.0278]
[1727136609269,9.57,144.65,144.6,9.57]
[1727136609460,3.41704292,144.64,144.6,9.57]
[1727136609659,9.57,144.65,144.6,9.57]
[1727136609866,3.4577,144.61,144.59,9.57]
[1727136615073,11.58588706,144.68,144.6,9.57]
[1727136615274,3.39420959,144.69,144.65,9.57]
[1727136615477,10.9314,144.71,144.66,9.57]
[1727136615982,9.57,144.72,144.67,9.57]
[1727136616182,3.4557,144.7,144.67,9.57]
[1727136616380,9.57,144.74,144.69,9.57]
[1727136616579,3.455,144.73,144.7,9.57]
[1727136617078,3.4551,144.72,144.68,3.4558]
[1727136617278,3.4551,144.72,144.69,9.57]
[1727136617677,9.57,144.74,144.65,1.3328]
[1727136618183,9.57,144.74,144.68,9.57]
[1727136618376,3.4555,144.71,144.68,9.57]
[1727136619076,3.4556,144.7,144.66,3.4564]
[1727136619278,3.4556,144.7,144.67,9.57]
[1727136620096,3.4558,144.69,144.67,9.57]
[1727136620399,9.57,144.7,144.65,14.3595]
[1727136620679,3.4559,144.69,144.65,14.3595]
[1727136620983,9.57,144.68,144.64,12.297]
[1727136621177,3.4564,144.67,144.64,10.9844]
[1727136622183,1.3676,144.73,144.65,9.57]
[1727136622484,16.2976,144.73,144.64,16.3444]
[1727136622787,3.456,144.69,144.65,3.4566]
[1727136627177,3.52662517,144.69,144.64,4.8714]
[1727136627381,14.93,144.71,144.64,1.4144]
[1727136627583,3.4562,144.68,144.64,4.8713]
[1727136627777,6.87978229,144.68,144.64,4.8713]
[1727136627988,3.4562,144.68,144.64,4.8713]
[1727136628788,3.4563,144.67,144.64,4.8713]
[1727136633290,16.2976,144.73,144.65,3.4567]
[1727136633497,16.2724,144.75,144.66,14.93]
[1727136633886,3.4553,144.71,144.68,3.4559]
[1727136634983,3.4552,144.72,144.69,3.4557]
[1727136637291,3.53418016,144.77,144.7,14.93]
[1727136637494,11.57906741,144.78,144.71,14.93]
[1727136637687,3.42287215,144.77,144.71,14.93]
[1727136637883,12.99686741,144.79,144.71,14.93]
[1727136638086,27.92686741,144.79,144.7,14.93]
[1727136638394,14.93,144.77,144.68,14.93]
[1727136638594,18.45693078,144.77,144.68,14.93]
[1727136638896,3.455,144.73,144.69,3.4558]
[1727136639095,18.45693078,144.77,144.69,3.4558]
[1727136639295,3.4552,144.72,144.69,3.4558]
[1727136639494,3.4552,144.72,144.68,18.386]
[1727136639688,18.45693078,144.77,144.66,14.93]
[1727136639995,3.4555,144.71,144.66,14.93]
[1727136640590,3.4555,144.71,144.67,3.4562]
[1727136641898,3.4557,144.7,144.67,3.4562]
[1727136642192,14.93,144.73,144.65,2.7544]
[1727136642495,18.40773675,144.73,144.65,2.7544]
[1727136642699,3.4561,144.68,144.65,6.2111]
[1727136642896,3.4561,144.68,144.65,2.7544]
[1727136643089,3.4563,144.67,144.65,1.3608]
[1727136643490,19.72443675,144.73,144.65,1.3608]
[1727136644097,3.4561,144.68,144.65,1.3608]
[1727136644293,3.4561,144.68,144.65,9.56]
[1727136646002,3.4563,144.67,144.65,9.56]
[1727136648301,3.4563,144.67,144.64,4.8713]
[1727136648604,3.4563,144.67,144.65,9.56]
[1727136648803,3.4561,144.68,144.65,9.56]
[1727136648993,9.56,144.69,144.64,1.4144]
[1727136649197,9.56,144.68,144.63,3.4572]
[1727136649407,9.56,144.66,144.61,10.9261]
[1727136649797,9.56,144.66,144.59,1.4317]
[1727136650005,13.02393305,144.65,144.59,1.4317]
[1727136650201,9.56,144.65,144.59,1.4317]
[1727136650502,9.56,144.65,144.6,9.56]
[1727136650702,3.52380281,144.64,144.6,9.56]
[1727136651006,3.52380281,144.64,144.59,13.018]
[1727136651803,3.4576,144.62,144.59,13.018]
[1727136652199,3.4576,144.62,144.59,9.56]
[1727136653106,3.4576,144.62,144.59,13.0182]
[1727136653806,9.56,144.63,144.59,13.0182]
[1727136653807,3.47773675,144.73,144.61,9.56]
[1727136654008,9.56,144.75,144.69,9.56]
[1727136654201,9.56,144.75,144.71,9.56]
[1727136654509,1.3203,144.76,144.72,9.56]
[1727136654703,3.40943181,144.75,144.72,9.56]
[1727136654897,3.4545,144.75,144.72,9.56]
[1727136656302,3.4545,144.75,144.71,3.4551]
[1727136658108,3.4542,144.76,144.72,3.4551]
[1727136658295,3.4542,144.76,144.72,18.3951]
[1727136659713,3.4544,144.75,144.72,14.94]
[1727136660010,3.48326649,144.77,144.7,14.94]
[1727136660303,14.94,144.77,144.5,6.91]
[1727136660508,14.94,144.75,144.66,14.94]
[1727136661011,3.4555,144.71,144.67,3.4561]
[1727136661708,3.45350846,144.74,144.67,3.4561]
[1727136661709,3.4556,144.7,144.67,3.4561]
[1727136661912,3.45350846,144.74,144.67,3.4561]
[1727136662111,14.94,144.75,144.67,3.4561]
[1727136662311,3.4554,144.71,144.67,3.4561]
[1727136662708,3.4554,144.71,144.68,3.456]
[1727136662901,3.4554,144.71,144.66,14.94]
[1727136663106,18.46575181,144.73,144.64,14.94]
[1727136663306,14.94,144.73,144.63,14.94]
[1727136663707,3.4562,144.68,144.65,3.4566]
[1727136664118,3.4561,144.68,144.64,3.4568]
[1727136664806,14.94,144.71,144.64,3.4568]
[1727136665201,3.4563,144.67,144.64,3.4568]
[1727136670711,4.83869105,144.72,144.62,4.2414]
[1727136670712,4.83869105,144.72,144.65,14.94]
[1727136670911,1.326,144.72,144.65,14.94]
[1727136671110,1.3625,144.78,144.7,14.94]
[1727136671310,1.3625,144.78,144.72,14.94]
[1727136671516,1.3137,144.81,144.74,14.94]
[1727136671913,1.3137,144.81,144.76,14.94]
[1727136673115,3.4529,144.81,144.76,18.394]
[1727136673325,1.3259,144.83,144.76,18.394]
[1727136673615,3.4534,144.79,144.76,18.394]
[1727136674021,3.4534,144.79,144.76,14.94]
[1727136675222,3.4534,144.79,144.76,18.3941]
[1727136675724,1.363,144.87,144.78,14.94]
[1727136675928,17.6161,144.91,144.82,14.94]